fUSD/lending_fUSD_20240718
["ID","MTS","AMOUNT","RATE_DAILY","PERIOD"]
[332594174,1721325038216,-200.13,0.00026764,5]
[332594175,1721325038226,-200.57,0.00026769,5]
[332594176,1721325038236,-199.72,0.00026772,5]
[332594177,1721325038245,-203.85,0.00026777,5]
[332594178,1721325038255,-126.09222823,0.00026779,5]
[332594329,1721325040402,-70.94777177,0.00026779,5]
[332594331,1721325040412,-2282.41253013,0.0002678,28]
[332594333,1721325040422,-201.83,0.00026784,5]
[332594335,1721325040432,-240.87733009,0.00027,2]
[332594337,1721325040441,-11486.0,0.000272,5]
[332594339,1721325040451,-167.0,0.0002722,2]
[332594341,1721325040461,-179.66,0.00027714,2]
[332594343,1721325040471,-14909.71550637,0.00028,2]
[332594345,1721325040480,-153.55759405,0.00028188,2]
[332594347,1721325040490,-172.29,0.00028618,91]
[332594348,1721325040499,-150.0,0.00028713,2]
[332594351,1721325040509,-208.83,0.00028715,2]
[332594353,1721325040520,-160.62802919,0.000301,2]
[332594355,1721325040531,-365.39785889,0.000301,2]
[332594357,1721325040541,-150.0,0.00030952,2]
[332594358,1721325040551,-208.83,0.00030979,2]
[332594360,1721325040561,-199.79938361,0.00031886,10]
[332594362,1721325040571,-173.06043984,0.00031886,4]
[332594364,1721325040581,-3888.57876967,0.00031886,30]
[332594366,1721325040591,-500.0,0.00031886,2]
[332594368,1721325040601,-155.08215645,0.00031992,7]
[332594370,1721325040612,-202.86,0.00032395,5]
[332594372,1721325040622,-600.0,0.000324,11]
[332594374,1721325040631,-549.36794378,0.00032499,4]
[332594376,1721325040641,-1300.0,0.000325,11]
[332594378,1721325040650,-2081.5,0.00032537,10]
[332594379,1721325040660,-825.98711,0.0003254,2]
[332594381,1721325040669,-2000.0,0.000326,11]
[332594383,1721325040679,-500.0,0.00032603,2]
[332594385,1721325040688,-1089.55055981,0.00032681,15]
[332594387,1721325040698,-462.455,0.00032682,2]
[332594389,1721325040712,-1253.0,0.00032682,2]
[332594391,1721325040724,-1662.0,0.00032682,2]
[332594393,1721325040734,-1829.0,0.00032682,2]
[332594395,1721325040744,-150.0,0.00032682,2]
[332594397,1721325040754,-398.051,0.00032682,2]
[332594399,1721325040764,-573.892,0.00032682,2]
[332594401,1721325040774,-809.0,0.00032682,2]
[332594403,1721325040783,-620.0,0.00032682,2]
[332594404,1721325040793,-559.33,0.00032682,2]
[332594406,1721325040805,-150.0,0.00032682,2]
[332594408,1721325040816,-2380.0,0.00032682,2]
[332594410,1721325040826,-2028.278,0.00032682,2]
[332594412,1721325040835,-3280.0,0.00032682,2]
[332594414,1721325040845,-150.0,0.00032682,2]
[332594416,1721325040855,-5117.0,0.00032682,2]
[332594418,1721325040865,-5823.0,0.00032682,2]
[332594420,1721325040874,-1667.0,0.00032682,2]
[332594422,1721325040884,-151.477,0.00032682,2]
[332594424,1721325040894,-1201.0,0.00032682,2]
[332594426,1721325040904,-12154.18624889,0.00032682,2]
[332594436,1721325041605,-26167.81375111,0.00032682,2]
[332594437,1721325041614,-150.166,0.00032682,2]
[332594438,1721325041624,-167.20080923,0.00032699,4]
[332594439,1721325041634,-2600.0,0.000327,11]
[332594440,1721325041643,-500.0,0.00032702,2]
[332594441,1721325041653,-500.0,0.00032702,2]
[332594442,1721325041662,-500.0,0.00032702,2]
[332594443,1721325041672,-500.0,0.00032702,2]
[332594444,1721325041682,-500.0,0.00032702,2]
[332594445,1721325041691,-500.0,0.00032702,2]
[332594446,1721325041701,-500.0,0.00032702,2]
[332594447,1721325041713,-500.0,0.00032702,2]
[332594448,1721325041727,-623.2736,0.00032702,2]
[332594449,1721325041736,-150.96706143,0.00032732,7]
[332594450,1721325041746,-171.14229391,0.00032776,4]
[332594451,1721325041755,-152.03045111,0.00032776,2]
[332594452,1721325041765,-324.50104717,0.00032776,2]
[332594453,1721325041774,-187.45847517,0.00032796,2]
[332594454,1721325041785,-3300.0,0.000328,11]
[332594455,1721325041795,-12821.4967808,0.00032856,5]
[332594456,1721325041805,-305.41,0.00032863,2]
[332594457,1721325041814,-305.41,0.00032863,2]
[332594458,1721325041823,-292.03976282,0.00032865,2]
[332594459,1721325041833,-305.41,0.00032866,2]
[332594460,1721325041843,-305.41,0.00032866,2]
[332594461,1721325041852,-305.41,0.00032866,2]
[332594462,1721325041862,-259.87375929,0.00032871,120]
[332594463,1721325041871,-5450.17604682,0.00032873,2]
[332594464,1721325041883,-726.68645396,0.00032873,2]
[332594465,1721325041895,-894.80731372,0.00032873,2]
[332594466,1721325041905,-750.97162215,0.00032873,2]
[332594467,1721325041956,-923.08219611,0.00032873,2]
[332594468,1721325041968,-19258.45448065,0.00032873,2]
[332594469,1721325041978,-47762.65753809,0.00032873,2]
[332594470,1721325041989,-383.22199961,0.00032873,2]
[332594472,1721325043623,-728.79434185,0.00032539,2]
[332594474,1721325043635,-128.39717409,0.00032539,2]
[332594475,1721325043644,-568.99406876,0.00032682,2]
[332594477,1721325043657,-487.68820134,0.00032682,2]
[332594478,1721325043669,-15.3177299,0.00032682,2]
[332594479,1721325043681,-1610.476116,0.00032873,2]
[332594480,1721325043693,-40599.11855816,0.00032873,2]
[332594481,1721325043704,-494.33920324,0.00032873,2]
[332594482,1721325043718,-11997.20585749,0.00032873,2]
[332594483,1721325043730,-9162.4750175,0.00032873,2]
[332594484,1721325043740,-153.16088913,0.00032873,2]
[332594485,1721325043749,-388.00491722,0.00032874,4]
[332594486,1721325043759,-500.0,0.00032874,2]
[332594487,1721325043769,-150.0,0.00032875,2]
[332594488,1721325043778,-455.45690081,0.00032876,2]
[332594489,1721325043788,-1341.83589862,0.00032876,2]
[332594490,1721325043797,-634.34826324,0.00032876,2]
[332594491,1721325043808,-338.0,0.00032876,5]
[332594493,1721325043818,-500.0,0.00032876,14]
[332594495,1721325043828,-500.0,0.00032876,14]
[332594496,1721325043838,-452.24664411,0.00032876,14]
[332594497,1721325043847,-500.0,0.00032876,14]
[332594498,1721325043857,-500.0,0.00032876,14]
[332594499,1721325043866,-151.0,0.00032876,7]
[332594500,1721325043876,-151.0,0.00032876,7]
[332594501,1721325043885,-257.795054,0.00032876,7]
[332594502,1721325043895,-503.3664001,0.00032876,14]
[332594503,1721325043904,-500.0,0.00032876,14]
[332594504,1721325043914,-151.0,0.00032876,7]
[332594505,1721325043925,-200.564663,0.00032876,7]
[332594506,1721325043934,-805.16,0.00032876,14]
[332594507,1721325043944,-151.0,0.00032876,7]
[332594508,1721325043953,-151.0,0.00032876,7]
[332594509,1721325043963,-151.0,0.00032876,7]
[332594510,1721325043972,-189.603866,0.00032876,7]
[332594511,1721325043981,-500.0,0.00032876,14]
[332594512,1721325043991,-500.0,0.00032876,14]
[332594513,1721325044000,-151.0,0.00032876,7]
[332594514,1721325044009,-500.0,0.00032876,14]
[332594515,1721325044019,-151.0,0.00032876,7]
[332594516,1721325044028,-151.0,0.00032876,7]
[332594517,1721325044038,-151.0,0.00032876,7]
[332594518,1721325044047,-788.94,0.00032876,14]
[332594519,1721325044055,-361.660872,0.00032876,7]
[332594520,1721325044064,-361.660872,0.00032876,7]
[332594521,1721325044073,-361.660872,0.00032876,7]
[332594522,1721325044082,-361.660872,0.00032876,7]
[332594523,1721325044090,-361.660872,0.00032876,7]
[332594524,1721325044100,-361.660872,0.00032876,7]
[332594525,1721325044110,-361.660872,0.00032876,7]
[332594526,1721325044119,-361.660872,0.00032876,7]
[332594527,1721325044128,-151.0,0.00032876,7]
[332594528,1721325044138,-151.0,0.00032876,7]
[332594529,1721325044147,-151.0,0.00032876,7]
[332594530,1721325044157,-151.0,0.00032876,7]
[332594531,1721325044166,-252.81785684,0.00032876,14]
[332594532,1721325044185,-303.20214316,0.00032876,14]
[332594533,1721325044194,-424.24116278,0.00032876,14]
[332594534,1721325044205,-672.57883722,0.00032876,14]
[332594535,1721325044217,-107.31061299,0.00032876,7]
[332594536,1721325044486,-43.68938701,0.00032876,7]
[332594537,1721325044496,-500.0,0.00032876,14]
[332594538,1721325044505,-500.0,0.00032876,14]
[332594539,1721325044515,-500.0,0.00032876,14]
[332594540,1721325044524,-500.0,0.00032876,14]
[332594541,1721325044534,-447.60779868,0.00032876,14]
[332594542,1721325044781,-174.16220132,0.00032876,14]
[332594543,1721325044791,-270.0855942,0.00032876,14]
[332594544,1721325044804,-229.9144058,0.00032876,14]
[332594545,1721325044815,-974.19,0.00032876,14]
[332594546,1721325044824,-500.0,0.00032876,14]
[332594547,1721325044834,-160.90486294,0.00032876,14]
[332594548,1721325044844,-1124.46,0.00032876,14]
[332594549,1721325044853,-500.0,0.00032876,14]
[332594550,1721325044863,-500.0,0.00032876,14]
[332594551,1721325044873,-500.0,0.00032876,14]
[332594552,1721325044882,-500.0,0.00032876,14]
[332594553,1721325044892,-500.0,0.00032876,14]
[332594554,1721325044901,-500.0,0.00032876,14]
[332594555,1721325044911,-500.0,0.00032876,14]
[332594556,1721325044920,-500.0,0.00032876,14]
[332594557,1721325044932,-500.0,0.00032876,14]
[332594558,1721325044942,-582.54,0.00032876,14]
[332594559,1721325044952,-1050.91,0.00032876,14]
[332594560,1721325044961,-151.0,0.00032876,7]
[332594561,1721325044971,-1348.92,0.00032876,14]
[332594562,1721325044981,-151.0,0.00032876,7]
[332594563,1721325044990,-500.0,0.00032876,14]
[332594564,1721325044999,-500.0,0.00032876,14]
[332594565,1721325045009,-500.0,0.00032876,14]
[332594566,1721325045018,-500.0,0.00032876,14]
[332594567,1721325045028,-500.0,0.00032876,14]
[332594568,1721325045037,-500.0,0.00032876,14]
[332594569,1721325045047,-500.0,0.00032876,14]
[332594570,1721325045056,-500.0,0.00032876,14]
[332594571,1721325045065,-230.38,0.00032876,14]
[332594572,1721325045075,-500.0,0.00032876,14]
[332594573,1721325045084,-500.0,0.00032876,14]
[332594574,1721325045094,-171.27857008,0.00032876,14]
[332594575,1721325045108,-328.39001,0.00032876,14]
[332594576,1721325045119,-9.43141992,0.00032876,14]
[332594577,1721325045129,-302.33724988,0.00032876,14]
[332594578,1721325045140,-197.66275012,0.00032876,14]
[332594579,1721325045151,-500.0,0.00032876,14]
[332594580,1721325045160,-543.7,0.00032876,14]
[332594581,1721325045169,-500.0,0.00032876,14]
[332594582,1721325045183,-500.0,0.00032876,14]
[332594583,1721325045192,-549.56,0.00032876,14]
[332594584,1721325045201,-1220.04,0.00032876,14]
[332594585,1721325045211,-500.0,0.00032876,14]
[332594586,1721325045220,-1059.07,0.00032876,14]
[332594587,1721325045229,-941.36,0.00032876,14]
[332594588,1721325045238,-133.16249351,0.00032876,14]
[332594589,1721325045251,-463.3999995,0.00032876,14]
[332594590,1721325045262,-337.95193987,0.00032876,14]
[332594591,1721325045273,-1446.68556712,0.00032876,14]
[332594592,1721325045282,-500.0,0.00032876,14]
[332594593,1721325045291,-500.0,0.00032876,14]
[332594594,1721325045301,-412.38801672,0.00032876,14]
[332594595,1721325045312,-1041.7,0.00032876,14]
[332594596,1721325045322,-822.51,0.00032876,14]
[332594597,1721325045332,-1290.79,0.00032876,14]
[332594598,1721325045342,-1276.37721304,0.00032876,14]
[332594599,1721325046402,-227.41308538,0.00013989,2]
[332594600,1721325046412,-363.67667857,0.00032672,10]
[332594601,1721325046423,-322.77008062,0.00032672,10]
[332594602,1721325046439,-1048.14324081,0.00032672,10]
[332594603,1721325046449,-194.69317521,0.00032865,2]
[332594604,1721325046457,-11724.36180376,0.00032872,4]
[332594605,1721325046634,-250.10479714,0.00032872,4]
[332594606,1721325046666,-6005.95744693,0.00032872,4]
[332594607,1721325046677,-8021.15857371,0.00032872,4]
[332594608,1721325046689,-1250.0945842,0.00032872,4]
[332594609,1721325046701,-2128.84910156,0.00032872,4]
[332594610,1721325046714,-588.01966988,0.00032872,4]
[332594611,1721325046729,-1523.78274965,0.00032872,4]
[332594623,1721325370764,300.0,0.00013579,2]
[332594624,1721325388213,300.0,0.00013579,2]
[332594625,1721325406075,4883.23432975,0.00013579,2]
[332594655,1721326205041,191.89399495,0.00013579,2]
[332594665,1721326231366,-196.61750891,0.00014999,2]
[332594666,1721326231376,-150.0,0.00015,2]
[332594667,1721326231385,-858.86865109,0.00016459,2]
[332594668,1721326231414,-213.52079333,0.00016459,2]
[332594669,1721326231426,-200.0,0.00017,2]
[332594670,1721326231435,-250.0,0.00019,2]
[332594671,1721326231444,-346.26,0.00019,2]
[332594672,1721326231454,-867.01191649,0.00019451,2]
[332594673,1721326231524,-687.20808351,0.00019451,2]
[332594674,1721326231535,-300.0,0.00019451,2]
[332594675,1721326231544,-300.0,0.00019451,2]
[332594676,1721326231554,-711.0,0.000206,2]
[332594677,1721326231564,-300.0,0.00021,2]
[332594678,1721326231573,-420.0,0.00021192,2]
[332594679,1721326231582,-134.59702424,0.00021644,2]
[332594680,1721326231593,-30.05297576,0.00021644,2]
[332594681,1721326231603,-157.8,0.00021644,2]
[332594682,1721326231612,-150.96,0.00021644,2]
[332594683,1721326231622,-587.0,0.00023088,2]
[332594684,1721326231631,-160.00269263,0.00024518,2]
[332594685,1721326231640,-225.7013246,0.00025,2]
[332594686,1721326231651,-823.0,0.00025155,2]
[332594687,1721326231660,-275.93,0.00026171,2]
[332594688,1721326231669,-2724.18876407,0.0002679,2]
[332594689,1721326231686,-382.808088,0.0002679,2]
[332594690,1721326231697,-1893.00314793,0.0002679,2]
[332594691,1721326231707,-1927.63883493,0.00026791,28]
[332594692,1721326231716,-750.0,0.00027397,2]
[332594693,1721326231725,-1084.0,0.00027406,2]
[332594694,1721326231734,-150.0,0.00027434,2]
[332594695,1721326231744,-160.00269264,0.00027516,2]
[332594696,1721326231753,-405.0,0.00027516,2]
[332594697,1721326231763,-250.0,0.00027945,2]
[332594698,1721326231772,-150.0,0.00028207,2]
[332594699,1721326231781,-250.0,0.00028399,2]
[332594700,1721326231791,-421.2,0.00028408,2]
[332594701,1721326231802,-164.27,0.00028432,2]
[332594702,1721326231811,-275.93,0.00028435,2]
[332594704,1721326231821,-359.15,0.00028448,2]
[332594706,1721326231830,-250.0,0.000287,2]
[332594707,1721326231840,-3560.45,0.0002874,2]
[332594708,1721326231849,-1137.81,0.00028804,5]
[332594709,1721326231859,-157.8,0.00028853,2]
[332594710,1721326231868,-154.27263327,0.00028903,2]
[332594711,1721326231878,-2021.38780005,0.00028979,2]
[332594712,1721326231887,-9609.88,0.0002898,2]
[332594713,1721326231896,-150.0,0.00028981,2]
[332594714,1721326231905,-150.0,0.00029754,2]
[332594715,1721326231915,-4519.83307872,0.00029762,2]
[332594716,1721326231925,-150.96,0.00029883,2]
[332594717,1721326231934,-224.0,0.00029928,2]
[332594718,1721326231944,-340.97054327,0.0003,10]
[332594719,1721326231953,-326.62836053,0.000301,2]
[332594720,1721326231963,-1853.0,0.000301,2]
[332594721,1721326231973,-150.0,0.00030528,2]
[332594722,1721326231982,-275.93,0.00030699,2]
[332594723,1721326231992,-201.78,0.00030879,5]
[332594724,1721326232001,-316.93,0.00030884,120]
[332594725,1721326232011,-150.0,0.00031302,2]
[332594726,1721326232021,-157.7415,0.000316,30]
[332594727,1721326232030,-295.75,0.00031726,2]
[332594728,1721326232041,-10516.67778601,0.00031885,5]
[332594729,1721326232050,-1000.0,0.00032,2]
[332594730,1721326232059,-150.0,0.00032012,2]
[332594731,1721326232069,-11736.01394763,0.00032073,4]
[332594732,1721326232078,-150.0,0.00032075,2]
[332594733,1721326232088,-199.25,0.0003226,5]
[332594734,1721326232097,-150.75,0.00032348,2]
[332594735,1721326232107,-259.2268,0.00032583,2]
[332594736,1721326232116,-500.0,0.00032603,2]
[332594737,1721326232128,-500.0,0.00032608,2]
[332594738,1721326232137,-200.0,0.00032608,2]
[332594739,1721326232147,-1450.3138584,0.00032611,4]
[332594740,1721326232161,-500.0,0.00032612,2]
[332594741,1721326232170,-1445.49,0.00032673,10]
[332594742,1721326232181,-1003.81,0.00032673,10]
[332594743,1721326232190,-533.90157478,0.00032682,4]
[332594744,1721326232200,-200.226,0.00032683,2]
[332594745,1721326232210,-1829.0,0.00032683,2]
[332594746,1721326232220,-1662.0,0.00032683,2]
[332594747,1721326232229,-361.0,0.00032683,2]
[332594748,1721326232241,-873.973,0.00032683,2]
[332594749,1721326232251,-450.0,0.00032683,2]
[332594750,1721326232260,-620.0,0.00032683,2]
[332594751,1721326232270,-809.0,0.00032683,2]
[332594752,1721326232279,-2373.0,0.00032683,2]
[332594753,1721326232288,-3276.0,0.00032683,2]
[332594754,1721326232298,-1992.0,0.00032683,2]
[332594755,1721326232307,-1072.0,0.00032683,2]
[332594756,1721326232317,-5823.0,0.00032683,2]
[332594757,1721326232326,-5117.0,0.00032683,2]
[332594758,1721326232336,-1201.0,0.00032683,2]
[332594759,1721326232346,-38322.0,0.00032683,2]
[332594760,1721326232356,-21914.83613369,0.00032745,15]
[332594761,1721326232366,-1500.0,0.00032747,14]
[332594762,1721326232376,-2720.0,0.00032748,8]
[332594763,1721326232388,-202.09,0.00032751,5]
[332594764,1721326232402,-467.27303639,0.00032752,4]
[332594765,1721326232411,-155.32721783,0.00032765,4]
[332594766,1721326232421,-324.50104717,0.00032766,2]
[332594767,1721326232431,-327.46704076,0.00032775,4]
[332594768,1721326232440,-1000.0,0.00032776,2]
[332594769,1721326232450,-5000.0,0.00032776,2]
[332594770,1721326232460,-171.14229391,0.00032776,4]
[332594771,1721326232470,-152.03045111,0.00032776,2]
[332594772,1721326232480,-2466.83304724,0.00032776,6]
[332594773,1721326232489,-164.56359999,0.00032776,2]
[332594774,1721326232499,-876.50015893,0.00032799,4]
[332594775,1721326232508,-241.71029907,0.00032799,4]
[332594776,1721326232518,-1252.92148855,0.00032799,2]
[332594777,1721326232527,-150.0,0.000328,2]
[332594778,1721326232536,-258.0,0.000328,6]
[332594779,1721326232546,-1204.57,0.00032835,10]
[332594780,1721326232555,-164.2360222,0.00032844,4]
[332594781,1721326232565,-626.98137185,0.00032845,4]
[332594782,1721326232574,-155.0,0.00032846,4]
[332594783,1721326232584,-150.0,0.00032849,2]
[332594784,1721326232593,-155.0,0.0003285,4]
[332594785,1721326232602,-227.41308538,0.0003285,7]
[332594786,1721326232612,-958.16486127,0.00032851,2]
[332594787,1721326232622,-179.70031025,0.00032851,4]
[332594788,1721326232631,-1865.51671217,0.00032852,10]
[332594789,1721326232641,-1719.02742377,0.00032853,120]
[332594790,1721326232650,-1271.86854711,0.00032854,4]
[332594791,1721326232659,-1444.2634888,0.00032854,4]
[332594792,1721326232669,-528.89993841,0.00032855,4]
[332594793,1721326232680,-24927.9495235,0.00032855,5]
[332594794,1721326232689,-681.58,0.00032855,2]
[332594795,1721326232699,-681.58,0.00032855,2]
[332594796,1721326232710,-166.0,0.00032856,2]
[332594797,1721326232720,-24927.9495235,0.00032856,5]
[332594798,1721326232729,-681.58,0.00032856,2]
[332594799,1721326232741,-681.58,0.00032856,2]
[332594800,1721326232750,-62603.97846012,0.00032866,5]
[332594801,1721326232763,-371.6925449,0.00032866,5]
[332594802,1721326232783,-316.90459077,0.00032866,5]
[332594803,1721326232794,-1800.0,0.00032866,5]
[332594804,1721326232807,-707.07731665,0.00032866,5]
[332594805,1721326232818,-629.99914214,0.00032866,5]
[332594806,1721326232839,-300.0,0.00032866,5]
[332594807,1721326232851,-1414.36815207,0.00032866,5]
[332594808,1721326232879,-376.28217556,0.00032866,5]
[332594809,1721326232891,-595.5625,0.00032866,5]
[332594813,1721326237382,-1667.0,0.00030541,2]
[332594815,1721326237392,-836.51,0.00032673,10]
[332594816,1721326237401,-241.71029907,0.00032775,4]
[332594817,1721326237412,-1514.75352243,0.0003285,10]
[332594818,1721326237424,-350.76318974,0.0003285,10]
[332594819,1721326237435,-4532.47114001,0.00032866,5]
[332594820,1721326237601,-1275.15327242,0.00032866,5]
[332594821,1721326237612,-5364.06497435,0.00032866,5]
[332594957,1721326241082,-3428.69111786,0.00032683,2]
[332594958,1721326241091,-876.50015893,0.00032775,4]
[332594959,1721326241101,-85898.77588701,0.00032866,5]
[332594960,1721326241111,-16287.6204633,0.00032866,5]
[332594961,1721326241121,-41546.5825391,0.00032866,5]
[332594962,1721326241132,-50898.8139478,0.00032866,5]
[332594963,1721326241142,-681.58,0.00032866,2]
[332594964,1721326241152,-372.74863242,0.00032871,4]
[332594965,1721326241166,-153.16088912,0.00032873,2]
[332594966,1721326241176,-153.16088912,0.00032874,2]
[332594967,1721326241186,-1073.49555561,0.00032876,2]
[332594968,1721326241197,-352.0,0.00032876,5]
[332594969,1721326241207,-422.9199871,0.00032876,2]
[332594970,1721326241217,-759.09800729,0.00032876,2]
[332594971,1721326241228,-151.0,0.00032876,7]
[332594972,1721326241241,-152.309877,0.00032876,7]
[332594973,1721326241251,-216.996523,0.00032876,7]
[332594974,1721326241261,-216.996523,0.00032876,7]
[332594975,1721326241271,-216.996523,0.00032876,7]
[332594976,1721326241281,-216.996523,0.00032876,7]
[332594977,1721326241290,-216.996523,0.00032876,7]
[332594978,1721326241300,-216.996523,0.00032876,7]
[332594979,1721326241309,-500.0,0.00032876,14]
[332594980,1721326241319,-500.0,0.00032876,14]
[332594981,1721326241330,-500.0,0.00032876,14]
[332594982,1721326241340,-647.18,0.00032876,14]
[332594983,1721326241350,-500.0,0.00032876,14]
[332594984,1721326241360,-500.0,0.00032876,14]
[332594985,1721326241370,-1918.49,0.00032876,14]
[332594986,1721326241380,-621.3,0.00032876,14]
[332594987,1721326241390,-913.57,0.00032876,14]
[332594988,1721326241399,-151.0,0.00032876,7]
[332594989,1721326241409,-151.0,0.00032876,7]
[332594990,1721326241419,-151.0,0.00032876,7]
[332594991,1721326241429,-151.0,0.00032876,7]
[332594992,1721326241438,-151.0,0.00032876,7]
[332594993,1721326241448,-1875.37,0.00032876,14]
[332594994,1721326241458,-500.0,0.00032876,14]
[332594995,1721326241468,-911.29,0.00032876,14]
[332594996,1721326241477,-500.0,0.00032876,14]
[332594997,1721326241487,-151.0,0.00032876,7]
[332594998,1721326241496,-500.0,0.00032876,14]
[332594999,1721326241505,-151.0,0.00032876,7]
[332595000,1721326241515,-151.0,0.00032876,7]
[332595001,1721326241524,-151.0,0.00032876,7]
[332595002,1721326241534,-151.0,0.00032876,7]
[332595003,1721326241544,-500.0,0.00032876,14]
[332595004,1721326241553,-877.93,0.00032876,14]
[332595005,1721326241562,-1028.56,0.00032876,14]
[332595006,1721326241572,-500.0,0.00032876,14]
[332595007,1721326241582,-1949.35,0.00032876,14]
[332595008,1721326241592,-930.06,0.00032876,14]
[332595009,1721326241601,-519.12,0.00032876,14]
[332595010,1721326241611,-500.0,0.00032876,14]
[332595011,1721326241621,-500.0,0.00032876,14]
[332595012,1721326241631,-500.0,0.00032876,14]
[332595013,1721326241641,-500.0,0.00032876,14]
[332595014,1721326241651,-1310.88,0.00032876,14]
[332595015,1721326241660,-269.60518932,0.00032876,14]
[332595016,1721326241670,-500.0,0.00032876,14]
[332595017,1721326241680,-500.0,0.00032876,14]
[332595018,1721326241689,-151.0,0.00032876,7]
[332595019,1721326241699,-500.0,0.00032876,14]
[332595020,1721326241708,-151.0,0.00032876,7]
[332595021,1721326241718,-1304.11,0.00032876,14]
[332595022,1721326241729,-500.0,0.00032876,14]
[332595023,1721326241739,-500.0,0.00032876,14]
[332595024,1721326241748,-730.11,0.00032876,14]
[332595025,1721326241758,-500.0,0.00032876,14]
[332595026,1721326241768,-500.0,0.00032876,14]
[332595027,1721326241778,-500.0,0.00032876,14]
[332595028,1721326241787,-500.0,0.00032876,14]
[332595029,1721326241797,-959.32,0.00032876,14]
[332595030,1721326241806,-500.0,0.00032876,14]
[332595031,1721326241816,-1386.45,0.00032876,14]
[332595032,1721326241826,-500.0,0.00032876,14]
[332595033,1721326241836,-500.0,0.00032876,14]
[332595034,1721326241846,-500.0,0.00032876,14]
[332595035,1721326241856,-500.0,0.00032876,14]
[332595036,1721326241865,-500.0,0.00032876,14]
[332595037,1721326241876,-1148.91,0.00032876,14]
[332595038,1721326241886,-500.0,0.00032876,14]
[332595039,1721326241896,-500.0,0.00032876,14]
[332595040,1721326241906,-500.0,0.00032876,14]
[332595041,1721326241915,-500.0,0.00032876,14]
[332595042,1721326241925,-500.0,0.00032876,14]
[332595043,1721326241935,-500.0,0.00032876,14]
[332595044,1721326241945,-500.0,0.00032876,14]
[332595045,1721326241956,-500.0,0.00032876,14]
[332595046,1721326241968,-500.0,0.00032876,14]
[332595047,1721326241978,-860.79,0.00032876,14]
[332595048,1721326241988,-2190.29,0.00032876,14]
[332595049,1721326241998,-500.0,0.00032876,14]
[332595050,1721326242007,-500.0,0.00032876,14]
[332595051,1721326242016,-500.0,0.00032876,14]
[332595052,1721326242026,-500.0,0.00032876,14]
[332595053,1721326242036,-500.0,0.00032876,14]
[332595054,1721326242046,-500.0,0.00032876,14]
[332595055,1721326242056,-500.0,0.00032876,14]
[332595056,1721326242066,-500.0,0.00032876,14]
[332595057,1721326242075,-500.0,0.00032876,14]
[332595058,1721326242085,-1423.51,0.00032876,14]
[332595059,1721326242095,-1756.58,0.00032876,14]
[332595060,1721326242105,-676.96,0.00032876,14]
[332595061,1721326242115,-500.0,0.00032876,14]
[332595062,1721326242125,-500.0,0.00032876,14]
[332595063,1721326242135,-500.0,0.00032876,14]
[332595064,1721326242145,-500.0,0.00032876,14]
[332595065,1721326242155,-500.0,0.00032876,14]
[332595066,1721326242168,-500.0,0.00032876,14]
[332595067,1721326242177,-1813.77,0.00032876,14]
[332595068,1721326242188,-500.0,0.00032876,14]
[332595069,1721326242201,-500.0,0.00032876,14]
[332595070,1721326242210,-641.24,0.00032876,14]
[332595071,1721326242222,-500.0,0.00032876,14]
[332595072,1721326242233,-500.0,0.00032876,14]
[332595073,1721326242243,-500.0,0.00032876,14]
[332595074,1721326242253,-604.8,0.00032876,14]